bitfinex/quotes_ETHUSD_20250823
["timestamp","ask_amount","ask_price","bid_price","bid_amount"]
[1755956178373,0.66,4725.5,4723.9,0.464]
[1755956180084,1.629,4725.6,4724.7,0.307]
[1755956180648,1.629,4725.6,4723.9,0.464]
[1755956180873,1.629,4725.6,4724.0,2.11683832]
[1755956181068,1.629,4725.6,4723.9,0.464]
[1755956181254,1.629,4725.6,4723.3,2.11712198]
[1755956181456,0.4371,4725.1,4723.2,2.0829]
[1755956181748,0.1056,4724.3,4723.6,0.1056]
[1755956182446,0.4371,4724.2,4723.8,0.02]
[1755956182948,0.1056,4723.9,4723.8,0.02]
[1755956183550,0.8338,4723.9,4723.8,0.02]
[1755956183757,1.4938,4723.9,4723.8,0.02]
[1755956184758,3.61069493,4723.9,4723.8,0.02]
[1755956184965,6.50509493,4723.9,4723.8,0.02]
[1755956185163,7.38793794,4723.9,4723.8,0.02]
[1755956185486,5.60235778,4723.9,4723.8,0.02]
[1755956185985,7.71925271,4723.9,4723.8,0.02]
[1755956187302,11.44125271,4723.9,4723.8,0.02]
[1755956187603,0.66,4723.6,4722.8,0.02]
[1755956187807,0.66,4723.4,4722.8,0.02]
[1755956188509,0.9511,4722.9,4722.8,0.02]
[1755956188782,9.78644315,4722.9,4722.8,0.02]
[1755956188952,11.96652363,4722.9,4722.8,0.02]
[1755956189148,9.84918048,4722.9,4722.8,0.024]
[1755956189353,6.37098048,4722.9,4722.8,0.024]
[1755956189553,8.346,4722.9,4722.8,0.024]
[1755956190353,9.7342,4722.9,4722.8,0.024]
[1755956190975,11.85154315,4722.9,4722.8,0.024]
[1755956191575,12.18292219,4722.9,4722.8,0.024]
[1755956193011,11.74982219,4722.9,4722.8,0.024]
[1755956193172,13.57362552,4722.9,4722.8,0.024]
[1755956193973,11.45628237,4722.9,4722.8,0.024]
[1755956194171,13.57362552,4722.9,4722.8,0.024]
[1755956194771,11.45628237,4722.9,4722.8,0.024]
[1755956194968,11.56188237,4722.9,4722.8,0.024]
[1755956195173,11.11978237,4722.9,4722.8,0.024]
[1755956195984,13.23712552,4722.9,4722.8,0.024]
[1755956196161,13.69102552,4722.9,4722.8,0.024]
[1755956196365,14.12812552,4722.9,4722.8,0.024]
[1755956197110,13.99307164,4722.9,4722.8,0.024]
[1755956197471,14.44566653,4722.9,4722.8,0.024]
[1755956198110,10.72866653,4722.9,4722.8,0.024]
[1755956198318,13.99607164,4722.9,4722.8,0.024]
[1755956198606,10.27607164,4722.9,4722.8,0.024]
[1755956198965,13.99707164,4722.9,4722.8,0.024]
[1755956199512,14.4490654,4722.9,4722.8,0.024]
[1755956199666,14.64560212,4722.9,4722.8,0.024]
[1755956199867,10.92560212,4722.9,4722.8,0.024]
[1755956200084,14.64560212,4722.9,4722.8,0.024]
[1755956200766,15.21180756,4722.9,4722.8,0.024]
[1755956200969,15.01527084,4722.9,4722.8,0.024]
[1755956201203,14.4490654,4722.9,4722.8,0.024]
[1755956201416,10.7290654,4722.9,4722.8,0.024]
[1755956201563,14.67490525,4722.9,4722.8,0.024]
[1755956201769,14.78050525,4722.9,4722.8,0.024]
[1755956203730,14.58418009,4722.9,4722.8,0.024]
[1755956204002,14.32281681,4722.9,4722.8,0.024]
[1755956204203,10.60681681,4722.9,4722.8,0.024]
[1755956204597,13.88371681,4722.9,4722.8,0.024]
[1755956205119,10.81527366,4722.9,4722.8,0.024]
[1755956205412,12.47962305,4722.9,4722.8,0.024]
[1755956205811,13.13962305,4722.9,4722.8,0.024]
[1755956205974,9.94308633,4722.9,4722.8,0.024]
[1755956206292,13.43074177,4722.9,4722.8,0.024]
[1755956206804,15.13984177,4722.9,4722.8,0.024]
[1755956207008,13.86785053,4722.9,4722.8,0.024]
[1755956207308,14.32120263,4722.9,4722.8,0.024]
[1755956207510,13.43075053,4722.9,4722.8,0.024]
[1755956208111,7.30830738,4722.9,4722.8,0.024]
[1755956208411,11.7509472,4722.9,4722.8,0.024]
[1755956208705,5.6421642,4722.9,4722.8,0.7928]
[1755956208907,8.6421642,4722.9,4722.8,0.7928]
[1755956209128,11.41991945,4722.9,4722.8,0.024]
[1755956209295,6.3025763,4722.9,4722.8,0.024]
[1755956209489,9.94758473,4722.9,4722.8,0.024]
[1755956210291,9.94758473,4722.9,4722.8,0.3189]
[1755956210903,6.23558473,4722.9,4722.8,0.7928]
[1755956211103,10.1410303,4722.9,4722.8,0.7928]
[1755956212031,10.47238762,4722.9,4722.8,0.3189]
[1755956212218,10.47238762,4722.9,4722.8,0.7928]
[1755956212419,6.76438762,4722.9,4722.8,0.7928]
[1755956212614,10.46938762,4722.9,4722.8,0.7928]
[1755956213231,10.27194205,4722.9,4722.8,0.7928]
[1755956213430,10.46974049,4722.9,4722.8,0.7928]
[1755956213626,10.46974049,4722.9,4722.8,0.7178]
[1755956213818,10.46974803,4722.9,4722.8,0.7178]
[1755956214142,10.92555907,4722.9,4722.8,0.7178]
[1755956214350,10.92555907,4722.9,4722.8,0.2439]
[1755956214850,10.92555907,4722.9,4721.8,0.024]
[1755956214851,3.66,4722.8,4721.8,0.024]
[1755956215006,0.1056,4722.5,4721.8,0.024]
[1755956215211,0.7656,4721.9,4721.8,0.024]
[1755956215514,6.0966,4721.9,4721.8,0.3189]
[1755956215840,10.03766437,4721.9,4721.8,0.7928]
[1755956216045,2.06600437,4721.9,4721.8,0.7928]
[1755956216209,5.4366,4721.9,4721.8,0.7928]
[1755956218848,5.4366,4721.9,4721.8,0.3189]
[1755956219212,5.4366,4721.9,4721.8,0.7928]
[1755956220153,5.4306,4721.9,4721.8,0.7928]
[1755956220327,0.1056,4722.1,4721.8,0.7928]
[1755956220655,0.1056,4723.0,4721.9,2.1029]
[1755956220868,1.629,4724.2,4722.9,0.2949]
[1755956221016,0.1056,4723.8,4723.0,2.59119429]
[1755956221212,0.1056,4723.8,4723.2,0.1056]
[1755956221413,3.7,4723.8,4723.7,0.2949]
[1755956221644,3.7,4723.8,4723.7,0.7688]
[1755956221826,3.8056,4723.8,4723.7,0.7688]
[1755956222231,3.8056,4723.8,4723.7,0.2949]
[1755956222649,3.8056,4723.8,4723.7,0.7688]
[1755956224153,3.8056,4723.8,4723.7,0.2949]
[1755956224326,0.66,4723.7,4722.8,0.1056]
[1755956224768,5.77699621,4723.7,4722.8,0.1056]
[1755956224928,0.66,4722.8,4721.7,0.4739]
[1755956225128,0.1056,4722.2,4721.7,0.4739]
[1755956225491,3.0,4722.3,4722.1,0.2949]
[1755956225774,3.703,4722.3,4722.1,0.2949]
[1755956225990,0.1056,4722.2,4722.1,0.7688]
[1755956226126,0.1056,4722.2,4722.1,0.2949]
[1755956226323,0.1056,4722.2,4722.1,0.7688]
[1755956226545,0.1056,4722.5,4722.1,0.7688]
[1755956226749,0.33135482,4723.0,4722.1,0.7688]
[1755956226750,0.33135482,4723.0,4722.9,2.11734315]
[1755956226980,0.1406,4723.7,4722.9,0.7688]
[1755956227185,0.035,4723.7,4723.6,0.1056]
[1755956227369,0.035,4723.7,4723.6,2.99142938]
[1755956228386,0.035,4723.7,4723.6,4.51382938]
[1755956228555,0.035,4723.7,4723.6,4.61942938]
[1755956228976,0.035,4723.7,4723.6,7.61942938]
[1755956229851,0.001,4724.4,4723.8,0.66]
[1755956230069,0.58620544,4727.8,4725.5,2.11616252]
[1755956230070,0.02,4727.8,4725.5,2.11616252]
[1755956230286,0.02,4727.8,4725.7,5.41098862]
[1755956230287,0.45668535,4726.8,4725.7,5.41098862]
[1755956230512,0.45668535,4726.8,4726.3,2.11579374]
[1755956230654,0.45668535,4726.8,4726.7,0.2949]
[1755956230861,0.02,4726.8,4726.7,0.7688]
[1755956231100,0.15557882,4729.5,4726.8,3.0]
[1755956231393,0.33097808,4728.3,4728.1,2.1149818]
[1755956231693,0.15557882,4729.5,4728.7,0.4005]
[1755956231862,0.1056,4729.7,4728.7,2.5024]
[1755956232982,0.02,4729.8,4728.7,2.5024]
[1755956232983,0.02,4729.8,4728.7,6.8424]
[1755956233399,0.02,4729.8,4728.7,5.80501166]
[1755956233607,0.02,4729.8,4728.7,7.91975778]
[1755956233803,0.02,4729.8,4728.7,9.2224]
[1755956234014,0.02,4729.8,4728.7,11.33714612]
[1755956234975,0.02,4729.8,4728.7,11.65309111]
[1755956235291,0.02,4729.8,4728.7,9.2224]
[1755956235607,0.02,4729.8,4728.7,9.2204]
[1755956235815,0.021,4729.8,4728.7,12.67514612]
[1755956235978,0.021,4729.8,4728.7,13.65109111]
[1755956236313,0.021,4729.8,4728.7,12.70114612]
[1755956236791,0.021,4729.8,4728.7,10.5884]
[1755956237511,0.021,4729.8,4728.7,3.3685]
[1755956237712,0.1056,4729.5,4728.7,5.4796]
[1755956238007,0.021,4729.8,4728.7,6.2484]
[1755956238208,0.021,4729.8,4728.7,1.7336]
[1755956238374,0.4543,4729.3,4728.7,1.7336]
[1755956238578,0.66,4729.7,4728.2,0.1056]
[1755956238579,0.7846,4728.8,4728.2,0.1056]
[1755956238830,0.4543,4728.7,4727.8,0.02]
[1755956238976,0.1056,4728.3,4727.8,0.02]
[1755956239172,0.1056,4727.9,4727.8,0.02]
[1755956239377,0.5599,4727.9,4727.8,0.02]
[1755956240183,0.02,4728.8,4727.8,0.02]
[1755956240522,0.4543,4728.7,4727.8,3.771]
[1755956240717,0.1056,4728.1,4727.8,0.02]
[1755956241087,0.4543,4728.0,4727.8,0.02]
[1755956241387,0.3103,4727.9,4727.8,0.02]
[1755956241596,0.7646,4727.9,4727.8,0.02]
[1755956241799,1.4246,4727.9,4727.8,0.02]
[1755956242019,1.57762,4727.9,4727.8,0.02]
[1755956242223,3.69272395,4727.9,4727.8,0.02]
[1755956242415,0.66,4727.8,4726.8,0.02]
[1755956242616,0.3103,4726.9,4726.8,0.02]
[1755956242998,0.4159,4726.9,4726.8,0.02]
[1755956243408,0.1056,4726.9,4726.8,0.02]
[1755956244041,0.1056,4727.3,4726.8,0.02]
[1755956245099,0.33101254,4728.0,4726.8,0.02]
[1755956245100,0.33101254,4728.0,4726.8,2.58359585]
[1755956245397,0.1056,4727.5,4726.8,2.58359585]
[1755956245899,0.1056,4727.5,4726.8,0.468]
[1755956246102,0.1056,4727.5,4726.9,0.1056]
[1755956246331,0.1056,4727.5,4727.0,3.746]
[1755956246675,0.3103,4727.1,4726.8,3.764]
[1755956246832,0.4159,4727.1,4726.8,3.764]
[1755956247257,0.8702,4727.1,4726.8,3.764]
[1755956248270,0.1056,4727.1,4726.8,3.764]
[1755956249575,0.001,4727.9,4727.0,0.3065]
[1755956249773,0.001,4727.9,4727.4,2.11532227]
[1755956250079,0.001,4727.9,4727.5,3.741]
[1755956250580,0.001,4727.9,4727.5,5.85624185]
[1755956250751,0.001,4727.9,4727.5,3.741]
[1755956251669,0.001,4727.9,4727.6,3.74]
[1755956252487,0.001,4727.9,4727.8,0.3065]
[1755956252693,0.001,4727.9,4727.8,2.42164869]
[1755956252902,0.001,4727.9,4727.8,2.86964869]
[1755956253538,0.001,4727.9,4727.8,0.7545]
[1755956253969,0.001,4727.9,4727.8,4.0425]
[1755956254163,0.001,4727.9,4727.8,6.60564869]
[1755956254350,0.001,4727.9,4727.8,3.736]
[1755956254541,0.3082,4727.9,4727.7,3.733]
[1755956254754,0.3082,4727.9,4727.6,0.1056]
[1755956254965,0.3082,4727.9,4727.2,2.11541427]
[1755956254966,0.001,4727.9,4727.2,2.11541427]
[1755956255142,0.001,4727.9,4727.3,0.1056]
[1755956255442,0.001,4727.9,4727.4,3.733]
[1755956258079,0.1056,4727.7,4727.4,3.733]
[1755956258588,0.1056,4727.7,4727.3,0.004]
[1755956258882,0.5599,4727.7,4727.4,3.727]
[1755956259087,0.9703,4727.4,4727.3,0.004]
[1755956259381,0.1056,4727.4,4727.3,0.004]
[1755956259753,0.4159,4727.4,4727.3,0.004]
[1755956260254,1.5302,4727.4,4727.3,0.004]
[1755956260453,1.9813386,4727.4,4727.3,0.004]
[1755956260654,1.0759,4727.4,4727.3,0.004]
[1755956261278,0.7656,4727.4,4727.3,0.004]
[1755956261671,1.0759,4727.4,4727.3,0.004]
[1755956261876,1.5302,4727.4,4727.3,0.004]
[1755956262276,1.72833386,4727.4,4727.3,0.004]
[1755956262487,1.27403386,4727.4,4727.3,0.004]
[1755956262887,1.0759,4727.4,4727.3,0.004]
[1755956263088,0.7656,4727.4,4727.3,0.004]
[1755956263471,1.0759,4727.4,4727.3,0.004]
[1755956264167,1.5302,4727.4,4727.3,0.004]
[1755956264679,7.84829647,4727.4,4727.3,0.004]
[1755956265000,9.0742906,4727.4,4727.3,0.004]
[1755956265370,6.95896294,4727.4,4727.3,0.004]
[1755956265570,9.0742906,4727.4,4727.3,0.004]
[1755956266502,10.40968501,4727.4,4727.3,0.004]
[1755956266671,9.2719867,4727.4,4727.3,0.004]
[1755956266997,5.77555141,4726.9,4726.8,0.02]
[1755956267195,8.36168611,4726.9,4726.8,0.02]
[1755956267365,8.92169642,4726.9,4726.8,0.02]
[1755956267563,10.52414501,4726.9,4726.8,0.02]
[1755956267802,13.77857592,4726.9,4726.8,0.02]
[1755956268001,15.52390008,4726.9,4726.8,0.02]
[1755956268499,14.38514678,4726.9,4726.8,0.02]
[1755956268871,14.38506314,4726.9,4726.8,0.02]
[1755956270000,12.26951173,4726.9,4726.8,0.02]
[1755956270202,14.38506314,4726.9,4726.8,0.02]
[1755956270380,14.51831964,4726.9,4726.8,0.02]
[1755956270580,14.71607146,4726.9,4726.8,0.02]
[1755956271272,15.27749106,4726.9,4726.8,0.02]
[1755956272277,14.51831964,4726.9,4726.8,0.02]
[1755956275317,15.0871676,4726.9,4726.8,0.02]
[1755956275684,12.97161619,4726.9,4726.8,0.02]
[1755956275893,12.95861619,4726.9,4726.8,0.02]
[1755956276092,9.25361619,4726.9,4726.8,0.02]
[1755956276298,11.93446823,4726.9,4726.8,0.02]
[1755956276616,14.52131964,4726.9,4726.8,0.02]
[1755956278131,12.40576823,4726.9,4726.8,0.02]
[1755956278299,11.93446823,4726.9,4726.8,0.02]
[1755956278686,8.23046823,4726.9,4726.8,0.02]
[1755956278892,11.92946823,4726.9,4726.8,0.02]
[1755956279314,7.92016823,4726.9,4726.8,0.02]
[1755956279621,9.87384407,4726.9,4726.8,0.02]
[1755956279987,9.87384407,4726.9,4726.8,0.024]
[1755956280388,5.3926,4726.9,4726.8,0.024]
[1755956280604,9.0906,4726.9,4726.8,0.024]
[1755956281920,9.3815,4726.9,4726.8,0.024]
[1755956282091,13.40864327,4726.9,4726.8,0.024]
[1755956282290,2.77577522,4726.4,4726.3,0.004]
[1755956282490,9.86727522,4726.4,4726.3,0.004]
[1755956282787,10.33857522,4726.4,4726.3,0.004]
[1755956283118,11.58400243,4726.4,4726.3,0.004]
[1755956283728,9.46822721,4726.4,4726.3,0.004]
[1755956283924,11.58400243,4726.4,4726.3,0.004]
[1755956284523,12.03934563,4726.4,4726.3,0.004]
[1755956284714,10.25469049,4726.4,4726.3,0.004]
[1755956285115,12.37046571,4726.4,4726.3,0.004]
[1755956285316,9.79934729,4726.4,4726.3,0.004]
[1755956285993,5.79760271,4726.4,4726.3,0.004]
[1755956286192,7.78972008,4726.4,4726.3,0.3007]
[1755956286833,4.12972008,4726.4,4726.3,0.3007]
[1755956287019,4.12972008,4726.4,4726.3,0.7419]
[1755956287222,3.7986,4726.4,4726.3,0.7419]
[1755956287599,3.7996,4726.4,4726.3,0.7419]
[1755956287826,0.1056,4726.4,4726.3,0.7419]
[1755956289530,0.1056,4726.4,4726.3,0.3007]
[1755956289830,0.7656,4726.4,4726.3,0.7419]
[1755956290021,1.21136,4726.4,4726.3,0.3007]
[1755956290332,4.4566,4726.4,4726.3,0.004]
[1755956292596,4.4566,4726.4,4726.3,0.3007]
[1755956293028,4.4536,4726.4,4726.3,0.7419]
[1755956296129,0.1056,4726.4,4726.3,0.7419]
[1755956297350,0.1056,4726.4,4726.3,2.85771998]
[1755956297512,0.001,4727.3,4726.7,2.11561017]
[1755956297718,0.001,4727.3,4727.2,0.2967]
[1755956297903,0.1066,4727.3,4727.2,0.2967]
[1755956298099,0.1066,4727.3,4727.2,0.7379]
[1755956298931,0.001,4727.3,4727.2,2.85331716]
[1755956300535,0.001,4727.3,4727.2,0.7379]
[1755956301140,0.001,4727.3,4727.2,0.2967]
[1755956301327,0.001,4727.3,4726.4,0.1056]
[1755956301328,0.395,4727.3,4726.4,0.1056]
[1755956301512,0.1056,4727.0,4726.4,0.1056]
[1755956301709,0.1056,4727.0,4726.9,0.3139]
[1755956302535,0.66,4726.9,4726.3,0.004]
[1755956302949,0.1056,4726.5,4726.3,0.004]
[1755956303251,0.1056,4726.5,4726.4,0.7698]
[1755956303749,0.1056,4726.5,4726.4,0.3139]
[1755956304352,0.1056,4726.5,4726.3,0.004]
[1755956304656,0.1056,4726.5,4726.4,0.3139]
[1755956304812,0.394,4726.5,4726.3,0.004]
[1755956305011,0.66,4726.4,4726.3,0.004]
[1755956305213,0.9484,4726.4,4726.3,0.004]
[1755956305412,4.56882,4726.4,4726.3,0.004]
[1755956307658,1.20622,4726.4,4725.4,0.4559]
[1755956307868,0.1056,4725.9,4725.4,0.4559]
[1755956308065,0.66,4726.2,4725.8,0.3139]
[1755956308274,0.1056,4725.6,4725.5,0.4559]
[1755956308467,0.1056,4725.6,4725.5,0.7698]
[1755956309134,0.1056,4725.6,4725.0,2.67789938]
[1755956309341,0.66,4725.5,4725.0,0.1056]
[1755956309729,0.49068,4725.4,4724.3,1.627]
[1755956310033,0.1056,4725.1,4724.3,3.84931078]
[1755956310362,0.1056,4725.1,4724.4,2.11666021]
[1755956310567,0.1056,4725.1,4724.3,1.7326]
[1755956310737,0.1056,4725.1,4724.4,2.11666652]
[1755956311060,0.66,4725.3,4724.3,1.627]
[1755956311262,0.1056,4724.6,4724.4,2.11663673]
[1755956311441,0.1056,4724.6,4724.5,2.88642609]
[1755956312569,0.1056,4724.6,4724.5,0.7698]
[1755956313273,0.1056,4724.6,4724.5,0.3139]
[1755956313433,0.1056,4724.6,4724.5,2.43052609]
[1755956313632,0.1056,4724.6,4724.5,2.88642609]
[1755956313832,0.1056,4724.6,4724.5,0.7698]
[1755956314534,0.1056,4724.6,4724.5,0.7738]
[1755956314734,0.1056,4724.6,4724.5,0.3179]
[1755956315145,0.1056,4724.6,4724.5,0.004]
[1755956315556,1.054,4724.6,4724.5,0.004]
[1755956315929,1.20622,4724.6,4724.5,0.004]
[1755956316370,1.67442,4724.6,4724.5,0.004]
[1755956316582,1.20622,4724.6,4724.5,0.004]
[1755956316860,1.67442,4724.6,4724.5,0.004]
[1755956318941,1.20622,4724.6,4724.5,0.004]
[1755956319271,0.91782,4724.6,4724.5,0.004]
[1755956320570,1.20622,4724.6,4724.5,0.004]
[1755956321798,1.76442,4724.6,4724.5,0.004]
[1755956322008,4.76442,4724.6,4724.5,0.004]
[1755956322499,1.76442,4724.6,4724.5,0.004]
[1755956323969,4.85262,4724.6,4724.5,0.004]
[1755956324302,4.85262,4724.6,4724.5,0.3179]
[1755956324303,3.8566,4724.6,4724.5,0.3179]
[1755956325089,4.5166,4724.6,4724.5,0.004]
[1755956325494,4.5166,4724.6,4724.5,0.3179]
[1755956326266,8.72486,4724.6,4724.5,0.004]
[1755956326463,8.809701,4724.6,4724.5,0.004]
[1755956327491,8.341501,4724.6,4724.5,0.004]
[1755956327982,8.809701,4724.6,4724.5,0.004]
[1755956330663,8.803501,4724.6,4724.5,0.004]
[1755956331676,8.341501,4724.6,4724.5,0.004]
[1755956332204,8.053101,4724.6,4724.5,0.004]
[1755956332796,3.8536,4724.6,4724.5,0.3051]
[1755956333110,4.5136,4724.6,4724.5,0.7671]
[1755956333685,0.8556,4724.6,4724.5,0.7671]
[1755956333894,4.5136,4724.6,4724.5,0.3051]
[1755956334095,4.5136,4724.6,4724.5,0.004]
[1755956335214,0.09,4724.6,4724.5,2.42172609]
[1755956335544,0.09,4725.2,4724.5,0.7671]
[1755956335683,0.09,4725.2,4724.6,0.462]
[1755956336015,0.09,4725.2,4725.1,2.41745732]
[1755956336200,0.09,4725.2,4725.1,2.87945732]
[1755956338205,0.09,4725.4,4725.1,2.87945732]
[1755956338390,0.09,4725.4,4725.2,0.462]
[1755956338605,0.09,4725.4,4725.3,2.41736775]
[1755956338810,0.091,4725.7,4725.6,2.1161334]
[1755956339104,0.091,4725.7,4725.6,2.4172334]
[1755956339327,0.091,4725.7,4725.6,2.8792334]
[1755956340960,0.091,4725.7,4724.8,0.462]
[1755956341131,1.0347,4725.6,4724.8,0.462]
[1755956341438,1.1247,4725.6,4724.5,2.12058681]
[1755956341642,0.66,4725.4,4724.5,0.004]
[1755956341815,3.66,4725.2,4724.5,0.004]
[1755956342413,0.9584,4724.6,4724.5,0.004]
[1755956342621,9.2434,4724.6,4724.5,0.004]
[1755956342943,9.7054,4724.6,4724.5,0.004]
[1755956343139,9.790239,4724.6,4724.5,0.004]
[1755956343322,10.7692629,4724.6,4724.5,0.004]
[1755956343521,6.6492629,4724.6,4724.5,0.004]
[1755956343715,6.029839,4724.6,4724.5,0.004]
[1755956344143,6.328239,4724.6,4724.5,0.004]
[1755956344314,6.2434,4724.6,4724.5,0.004]
[1755956344735,6.7054,4724.6,4724.5,0.004]
[1755956344946,7.384423,4724.6,4724.5,0.004]
[1755956345114,6.922423,4724.6,4724.5,0.004]
[1755956345315,7.490023,4724.6,4724.5,0.004]
[1755956346514,12.69660429,4724.6,4724.5,0.004]
[1755956346955,13.02780657,4724.6,4724.5,0.004]
[1755956347461,12.69660429,4724.6,4724.5,0.004]
[1755956348250,10.580023,4724.6,4724.5,0.004]
[1755956348450,10.664874,4724.6,4724.5,0.004]
[1755956349049,12.78145529,4724.6,4724.5,0.004]
[1755956349791,10.664874,4724.6,4724.5,0.004]
[1755956350148,12.78145529,4724.6,4724.5,0.004]
[1755956351253,13.11268936,4724.6,4724.5,0.004]
[1755956351861,13.56851815,4724.6,4724.5,0.004]
[1755956352075,5.77680531,4724.1,4724.0,0.004]
[1755956352387,9.92180531,4724.1,4724.0,0.004]
[1755956352696,10.38380531,4724.1,4724.0,0.004]
[1755956352872,4.27172322,4724.1,4724.0,0.004]
[1755956353053,7.83687022,4724.1,4724.0,0.004]
[1755956353384,9.38095724,4724.1,4724.0,0.004]
[1755956353954,8.91895724,4724.1,4724.0,0.004]
[1755956355203,5.26895724,4724.1,4724.0,0.004]
[1755956355387,7.83787022,4724.1,4724.0,0.004]
[1755956355685,7.83787022,4724.1,4724.0,0.3051]
[1755956356495,4.18687022,4724.1,4724.0,0.004]
[1755956356668,8.59627022,4724.1,4724.0,0.004]
[1755956357586,7.83587022,4724.1,4724.0,0.004]
[1755956358290,4.18687022,4724.1,4724.0,0.3051]
[1755956358597,4.18687022,4724.1,4724.0,0.7586]
[1755956358598,3.8446,4724.1,4724.0,0.7586]
[1755956359256,3.8446,4724.1,4724.0,2.87545012]
[1755956360163,3.8456,4724.1,4724.0,2.87545012]
[1755956360888,0.09,4724.1,4724.0,2.87545012]
[1755956361589,0.09,4724.1,4724.0,0.7586]
[1755956361910,0.09,4724.1,4724.0,2.87545012]
[1755956362196,0.09,4724.1,4724.0,0.7586]
[1755956362767,1.0561,4724.1,4724.0,0.004]
[1755956362968,1.44066,4724.1,4724.0,0.004]
[1755956363286,4.90766,4724.1,4724.0,0.004]
[1755956364776,4.44066,4724.1,4724.0,0.004]
[1755956366417,4.90766,4724.1,4724.0,0.004]
[1755956366803,4.90766,4724.1,4723.5,0.004]
[1755956366804,5.77702938,4723.6,4723.5,0.004]
[1755956367115,12.34512769,4723.6,4723.5,0.004]
[1755956367314,12.81212769,4723.6,4723.5,0.004]
[1755956367472,12.89699669,4723.6,4723.5,0.004]
[1755956367977,13.35270864,4723.6,4723.5,0.004]
[1755956368892,11.23567926,4723.6,4723.5,0.004]
[1755956369203,10.31296731,4723.6,4723.5,0.004]
[1755956369504,5.4726,4723.6,4723.5,0.3195]
[1755956369819,5.4726,4723.6,4723.5,0.773]
[1755956369989,9.1326,4723.6,4723.5,0.773]
[1755956370193,9.1326,4723.6,4723.5,0.3195]
[1755956370422,10.5631451,4723.6,4723.5,0.3195]
[1755956370705,10.5631451,4723.6,4723.5,0.004]
[1755956371276,10.5631451,4723.6,4723.5,0.3195]
[1755956371492,9.1326,4723.6,4723.5,0.773]
[1755956371881,9.1326,4723.6,4723.5,0.004]
[1755956372082,6.1326,4723.6,4723.5,0.004]
[1755956372287,6.1326,4723.6,4723.5,0.3195]
[1755956372686,6.1326,4723.6,4723.5,0.773]
[1755956372687,0.1956,4723.6,4723.5,0.773]
[1755956372891,3.8456,4723.6,4723.5,0.773]
[1755956373136,0.1956,4723.6,4723.5,2.8900742]
[1755956374296,0.09,4723.6,4723.5,2.8900742]
[1755956374503,0.09,4723.7,4723.6,2.11702938]
[1755956374806,0.09,4723.7,4723.6,2.88602938]
[1755956375817,0.09,4723.8,4723.7,2.11698456]
[1755956376012,0.09,4723.8,4723.7,2.88598456]
[1755956377253,0.09,4724.0,4723.9,2.11689493]
[1755956377406,0.09,4724.0,4723.9,2.43239493]
[1755956377608,0.09,4724.0,4723.9,2.88589493]
[1755956378920,0.091,4724.5,4724.4,2.1166709]
[1755956379109,0.091,4724.5,4724.4,2.4321709]
[1755956379310,0.091,4724.5,4724.4,2.9912709]
[1755956380918,0.091,4724.5,4724.4,8.2682709]
[1755956381347,0.091,4724.5,4724.4,11.2682709]
[1755956382442,0.091,4724.5,4724.4,8.2682709]
[1755956384341,0.001,4725.7,4725.4,2.11622296]
[1755956384543,0.001,4725.7,4725.4,10.81332296]
[1755956384741,0.001,4725.7,4725.4,11.26682296]
[1755956386148,0.001,4725.7,4725.4,7.61882296]
[1755956386449,0.001,4725.7,4725.4,11.26682296]
[1755956387117,0.04,4725.8,4725.7,2.11608862]
[1755956387333,0.04,4725.8,4725.7,5.43158862]
[1755956387539,0.04,4725.8,4725.7,2.99068862]
[1755956387741,0.04,4725.8,4725.7,6.63868862]
[1755956388728,0.04,4725.8,4725.7,9.63868862]
[1755956389450,0.02,4726.8,4726.7,2.11564093]
[1755956389647,0.02,4726.8,4726.7,6.07594093]
[1755956389846,0.02,4726.8,4726.7,6.62254093]
[1755956390728,0.02,4726.8,4726.7,2.53454093]
[1755956391046,0.02,4726.8,4726.7,5.86824093]
[1755956391251,0.7517,4726.8,4726.7,3.7526]
[1755956391419,0.7517,4726.8,4726.6,1.627]
[1755956391614,0.7517,4726.8,4726.7,3.647]
[1755956392362,0.021,4726.8,4726.7,5.76264093]
[1755956392734,0.3091,4726.8,4726.7,3.647]
[1755956393152,0.3091,4726.8,4726.7,5.76264093]
[1755956393360,0.021,4726.8,4726.7,6.07594093]
[1755956393553,0.021,4726.8,4726.7,6.18054093]
[1755956393945,0.021,4726.8,4726.7,5.86724093]
[1755956394475,0.3091,4726.8,4726.7,5.86724093]
[1755956394963,0.021,4726.8,4726.7,6.62154093]
[1755956395550,0.021,4726.8,4726.7,9.62154093]
[1755956398753,0.021,4726.8,4726.7,9.18054093]
[1755956398965,0.021,4726.8,4726.7,9.62154093]
[1755956402364,0.001,4727.3,4727.2,2.11541716]
[1755956402572,0.001,4727.3,4727.2,6.17931716]
[1755956402952,0.001,4727.3,4727.2,6.62031716]
[1755956403375,0.001,4727.3,4727.2,6.17931716]
[1755956403777,0.001,4727.3,4727.2,5.86601716]
[1755956403944,0.2891,4727.3,4727.2,2.22101716]
[1755956404149,0.2891,4727.3,4727.2,5.86601716]
[1755956404783,0.7327,4727.3,4727.2,5.86601716]
[1755956405088,0.001,4727.3,4727.2,5.86601716]